fUSD/lending_fUSD_20240615
["ID","MTS","AMOUNT","RATE_DAILY","PERIOD"]
[329561450,1718436655773,-2511.61,0.00022191,3]
[329561452,1718436655786,-500.0,0.00022191,3]
[329561454,1718436655804,-655.35,0.00022191,3]
[329561456,1718436655817,-500.0,0.00022191,3]
[329561458,1718436655833,-210.25111154,0.00022191,3]
[329561463,1718436656008,-500.0,0.00022191,3]
[329561464,1718436656019,-500.0,0.00022191,3]
[329561465,1718436656032,-516.71,0.00022191,3]
[329561468,1718436656069,-1322.77,0.00022191,3]
[329561469,1718436656088,-227.75,0.00022191,3]
[329561470,1718436656099,-500.0,0.00022191,3]
[329561472,1718436656125,-500.0,0.00022191,3]
[329561473,1718436656148,-500.0,0.00022191,3]
[329561475,1718436656164,-500.0,0.00022191,3]
[329561478,1718436656208,-618.07,0.00022191,3]
[329561480,1718436656248,-500.0,0.00022191,3]
[329561481,1718436656272,-805.15,0.00022191,3]
[329561482,1718436656288,-1391.88,0.00022191,3]
[329561483,1718436656306,-500.0,0.00022191,3]
[329561484,1718436656330,-528.33,0.00022191,3]
[329561485,1718436656368,-1398.67,0.00022191,3]
[329561486,1718436656390,-500.0,0.00022191,3]
[329561487,1718436656418,-500.0,0.00022191,3]
[329561488,1718436656440,-1382.27,0.00022191,3]
[329561489,1718436656461,-535.28,0.00022191,3]
[329561490,1718436656488,-500.0,0.00022191,3]
[329561491,1718436656512,-500.0,0.00022191,3]
[329561492,1718436656534,-3115.27,0.00022191,3]
[329561493,1718436656555,-500.0,0.00022191,3]
[329561494,1718436656575,-500.0,0.00022191,3]
[329561495,1718436656593,-524.21,0.00022191,3]
[329561496,1718436656609,-742.02,0.00022191,3]
[329561497,1718436656636,-509.46,0.00022191,3]
[329561498,1718436656647,-500.0,0.00022191,3]
[329561499,1718436656660,-500.0,0.00022191,3]
[329561500,1718436656698,-500.0,0.00022191,3]
[329561501,1718436656730,-500.0,0.00022191,3]
[329561502,1718436656758,-664.29,0.00022191,3]
[329561503,1718436656788,-556.15,0.00022191,3]
[329561504,1718436656801,-500.0,0.00022191,3]
[329561505,1718436656827,-500.0,0.00022191,3]
[329561506,1718436656848,-500.0,0.00022191,3]
[329561507,1718436656909,-500.0,0.00022191,3]
[329561508,1718436656924,-500.0,0.00022191,3]
[329561509,1718436656969,-536.22724597,0.00022191,3]
[329561510,1718436656981,-500.0,0.00022191,3]
[329561511,1718436656992,-517.24,0.00022191,3]
[329561512,1718436657003,-500.0,0.00022191,3]
[329561513,1718436657016,-615.95,0.00022191,3]
[329561514,1718436657053,-500.0,0.00022191,3]
[329561515,1718436657096,-982.39,0.00022191,3]
[329561516,1718436657147,-500.0,0.00022191,3]
[329561517,1718436657168,-500.0,0.00022191,3]
[329561518,1718436657183,-500.0,0.00022191,3]
[329561519,1718436657194,-500.0,0.00022191,3]
[329561520,1718436657232,-500.0,0.00022191,3]
[329561521,1718436657248,-500.0,0.00022191,3]
[329561522,1718436657265,-500.0,0.00022191,3]
[329561523,1718436657287,-500.0,0.00022191,3]
[329561524,1718436657347,-511.26828162,0.00022191,3]
[329561525,1718436657374,-500.0,0.00022191,3]
[329561526,1718436657423,-500.0,0.00022191,3]
[329561527,1718436657443,-500.0,0.00022191,3]
[329561528,1718436657468,-537.24,0.00022191,3]
[329561529,1718436657490,-552.55,0.00022191,3]
[329561530,1718436657505,-500.0,0.00022191,3]
[329561531,1718436657643,-509.23106285,0.00022191,3]
[329561532,1718436657655,-269.926705,0.00022191,3]
[329561533,1718436657666,-500.0,0.00022191,3]
[329561534,1718436657676,-1089.65,0.00022191,3]
[329561535,1718436657690,-509.18,0.00022191,3]
[329561536,1718436657702,-583.57,0.00022191,3]
[329561537,1718436657715,-3800.03253267,0.000222,2]
[329561538,1718436657728,-401.73399551,0.000222,2]
[329561539,1718436657740,-506.0,0.000223,2]
[329561540,1718436657751,-250000.0,0.000223,2]
[329561541,1718436657766,-2767.92675544,0.000223,2]
[329561542,1718436657781,-151.0,0.000223,7]
[329561543,1718436657792,-150.0,0.00022333,2]
[329561544,1718436657804,-382.60300411,0.00022386,2]
[329561545,1718436657831,-413.92057913,0.00022415,2]
[329561547,1718436657850,-830.01,0.00022435,2]
[329561548,1718436657873,-155.49314557,0.00022463,2]
[329561550,1718436657902,-350.60679054,0.00022464,2]
[329561551,1718436657922,-500.0,0.00022464,3]
[329561552,1718436657942,-500.0,0.00022464,3]
[329561553,1718436657980,-500.0,0.00022465,3]
[329561554,1718436658001,-500.0,0.00022465,3]
[329561555,1718436658028,-500.0,0.00022465,3]
[329561556,1718436658040,-500.0,0.00022465,3]
[329561557,1718436658066,-500.0,0.00022465,3]
[329561558,1718436658078,-500.0,0.00022465,3]
[329561559,1718436658105,-500.0,0.00022465,3]
[329561560,1718436658151,-500.0,0.00022465,3]
[329561561,1718436658163,-199.10813717,0.00022465,3]
[329561562,1718436658189,-500.0,0.00022465,3]
[329561563,1718436658207,-500.0,0.00022465,3]
[329561564,1718436658225,-252.42330648,0.00022465,3]
[329561565,1718436658246,-500.0,0.00022465,3]
[329561566,1718436658262,-500.0,0.00022465,3]
[329561567,1718436658311,-500.0,0.00022465,3]
[329561568,1718436658329,-500.0,0.00022465,3]
[329561569,1718436658387,-622.01,0.00022465,3]
[329561570,1718436658398,-500.0,0.00022465,3]
[329561571,1718436658409,-500.0,0.00022465,3]
[329561572,1718436658432,-500.0,0.00022465,3]
[329561573,1718436658444,-500.0,0.00022465,3]
[329561574,1718436658468,-500.0,0.00022465,3]
[329561575,1718436658483,-500.0,0.00022465,3]
[329561576,1718436658517,-511.17,0.00022465,3]
[329561577,1718436658534,-500.0,0.00022465,3]
[329561578,1718436658545,-500.0,0.00022465,3]
[329561579,1718436658565,-696.63,0.00022465,3]
[329561580,1718436658596,-500.0,0.00022465,3]
[329561581,1718436658610,-500.0,0.00022465,3]
[329561582,1718436658633,-500.0,0.00022465,3]
[329561583,1718436658728,-500.0,0.00022465,3]
[329561584,1718436658743,-254.5168905,0.00022465,3]
[329561585,1718436658769,-513.21,0.00022465,3]
[329561586,1718436658780,-500.0,0.00022465,3]
[329561587,1718436658803,-500.0,0.00022465,3]
[329561588,1718436658832,-500.0,0.00022465,3]
[329561589,1718436658863,-500.0,0.00022465,3]
[329561590,1718436658899,-745.49,0.00022465,3]
[329561591,1718436658917,-500.0,0.00022465,3]
[329561592,1718436658932,-500.0,0.00022465,3]
[329561593,1718436658953,-500.0,0.00022465,3]
[329561594,1718436658980,-725.08,0.00022465,3]
[329561595,1718436659005,-500.0,0.00022465,3]
[329561596,1718436659018,-377.49311576,0.00022465,3]
[329561597,1718436659081,-750.91,0.00022465,3]
[329561598,1718436659115,-618.17015461,0.00022465,3]
[329561599,1718436659132,-500.0,0.00022465,3]
[329561600,1718436659143,-500.0,0.00022465,3]
[329561601,1718436659157,-553.92,0.00022465,3]
[329561602,1718436659181,-500.0,0.00022465,3]
[329561603,1718436659208,-500.0,0.00022465,3]
[329561604,1718436659236,-500.0,0.00022465,3]
[329561605,1718436659248,-199.12859792,0.00022465,3]
[329561606,1718436659261,-500.0,0.00022465,3]
[329561607,1718436659314,-489.15446125,0.00022465,3]
[329561608,1718436659332,-500.0,0.00022465,3]
[329561609,1718436659362,-500.0,0.00022465,3]
[329561610,1718436659384,-500.0,0.00022465,3]
[329561611,1718436659401,-500.0,0.00022465,3]
[329561612,1718436659433,-500.0,0.00022465,3]
[329561613,1718436659452,-500.0,0.00022465,3]
[329561614,1718436659499,-541.18683616,0.00022465,3]
[329561615,1718436659511,-500.0,0.00022465,3]
[329561616,1718436659556,-678.04,0.00022465,3]
[329561617,1718436659567,-500.0,0.00022465,3]
[329561618,1718436659586,-500.0,0.00022465,3]
[329561619,1718436659602,-500.0,0.00022465,3]
[329561620,1718436659614,-500.0,0.00022465,3]
[329561621,1718436659640,-500.0,0.00022465,3]
[329561622,1718436659658,-500.0,0.00022465,3]
[329561623,1718436659693,-500.0,0.00022465,3]
[329561624,1718436659704,-500.0,0.00022465,3]
[329561625,1718436659728,-500.0,0.00022465,3]
[329561626,1718436659745,-500.0,0.00022465,3]
[329561627,1718436659762,-500.0,0.00022465,3]
[329561628,1718436659776,-500.0,0.00022465,3]
[329561629,1718436659797,-500.0,0.00022465,3]
[329561630,1718436659832,-500.0,0.00022465,3]
[329561631,1718436659845,-500.0,0.00022465,3]
[329561632,1718436659909,-500.0,0.00022465,3]
[329561633,1718436659948,-693.53,0.00022465,3]
[329561634,1718436660000,-500.0,0.00022465,3]
[329561635,1718436660020,-625.09601391,0.00022465,3]
[329561636,1718436660050,-1074.9,0.00022465,3]
[329561637,1718436660072,-528.65,0.00022465,3]
[329561638,1718436660097,-500.0,0.00022465,3]
[329561639,1718436660116,-500.0,0.00022465,3]
[329561640,1718436660173,-500.0,0.00022465,3]
[329561641,1718436660185,-500.0,0.00022465,3]
[329561642,1718436660198,-963.02,0.00022465,3]
[329561643,1718436660211,-500.0,0.00022465,3]
[329561644,1718436660241,-500.0,0.00022465,3]
[329561645,1718436660252,-500.0,0.00022465,3]
[329561646,1718436660278,-500.0,0.00022465,3]
[329561647,1718436660308,-500.0,0.00022465,3]
[329561648,1718436660324,-526.74096736,0.00022465,3]
[329561649,1718436660342,-500.0,0.00022465,3]
[329561650,1718436660357,-1033.86,0.00022465,3]
[329561651,1718436660376,-1158.14,0.00022465,3]
[329561652,1718436660400,-500.0,0.00022465,3]
[329561653,1718436660412,-500.0,0.00022465,3]
[329561654,1718436660423,-500.0,0.00022465,3]
[329561655,1718436660433,-551.97,0.00022465,3]
[329561656,1718436660448,-609.55,0.00022465,3]
[329561657,1718436660459,-500.0,0.00022465,3]
[329561658,1718436660469,-500.0,0.00022465,3]
[329561659,1718436660479,-500.0,0.00022465,3]
[329561660,1718436660491,-1063.44,0.00022465,3]
[329561661,1718436660506,-500.0,0.00022465,3]
[329561662,1718436660577,-500.0,0.00022465,3]
[329561663,1718436660618,-500.0,0.00022465,3]
[329561664,1718436660669,-500.0,0.00022465,3]
[329561665,1718436660694,-520.92479936,0.00022465,3]
[329561666,1718436660720,-500.0,0.00022465,3]
[329561667,1718436660731,-999.75,0.00022465,3]
[329561668,1718436660745,-660.17,0.00022465,3]
[329561669,1718436660765,-500.0,0.00022465,3]
[329561670,1718436660796,-500.0,0.00022465,3]
[329561671,1718436660807,-500.0,0.00022465,3]
[329561672,1718436660829,-700.24,0.00022465,3]
[329561673,1718436660841,-1401.44,0.00022465,3]
[329561674,1718436660856,-500.0,0.00022465,3]
[329561675,1718436660872,-2275.87,0.00022465,3]
[329561676,1718436660883,-514.27,0.00022465,3]
[329561677,1718436660894,-500.0,0.00022465,3]
[329561678,1718436660904,-500.0,0.00022465,3]
[329561679,1718436660920,-571.88,0.00022465,3]
[329561680,1718436660932,-614.19,0.00022465,3]
[329561681,1718436660961,-512.34,0.00022465,3]
[329561682,1718436660981,-500.0,0.00022465,3]
[329561683,1718436661015,-438.94298804,0.00022465,3]
[329561684,1718436661026,-500.0,0.00022465,3]
[329561685,1718436661037,-860.79,0.00022465,3]
[329561686,1718436661050,-500.0,0.00022465,3]
[329561687,1718436661069,-803.25,0.00022465,3]
[329561688,1718436661081,-790.89,0.00022465,3]
[329561689,1718436661094,-500.0,0.00022465,3]
[329561690,1718436661119,-500.0,0.00022465,3]
[329561691,1718436661144,-1239.43,0.00022465,3]
[329561692,1718436661169,-681.52,0.00022465,3]
[329561693,1718436661180,-591.94,0.00022465,3]
[329561694,1718436661191,-760.75,0.00022465,3]
[329561695,1718436661220,-500.0,0.00022465,3]
[329561696,1718436661232,-1009.11,0.00022465,3]
[329561697,1718436661256,-673.83,0.00022465,3]
[329561698,1718436661271,-500.0,0.00022465,3]
[329561699,1718436661298,-500.0,0.00022465,3]
[329561700,1718436661353,-500.0,0.00022465,3]
[329561701,1718436661363,-542.02,0.00022465,3]
[329561702,1718436661375,-692.54,0.00022465,3]
[329561703,1718436661391,-500.0,0.00022465,3]
[329561704,1718436661425,-633.11,0.00022465,3]
[329561705,1718436661448,-500.0,0.00022465,3]
[329561706,1718436661476,-500.0,0.00022465,3]
[329561707,1718436661490,-500.0,0.00022465,3]
[329561708,1718436661504,-586.32,0.00022465,3]
[329561709,1718436661518,-511.93,0.00022465,3]
[329561710,1718436661544,-500.0,0.00022465,3]
[329561711,1718436661560,-875.84,0.00022465,3]
[329561712,1718436661582,-1012.59,0.00022465,3]
[329561713,1718436661600,-705.67,0.00022465,3]
[329561714,1718436661611,-500.0,0.00022465,3]
[329561715,1718436661645,-500.0,0.00022465,3]
[329561716,1718436661655,-500.0,0.00022465,3]
[329561717,1718436661667,-622.45,0.00022465,3]
[329561718,1718436661679,-500.0,0.00022465,3]
[329561719,1718436661711,-500.0,0.00022465,3]
[329561720,1718436661722,-500.0,0.00022465,3]
[329561721,1718436661741,-512.36968231,0.00022465,3]
[329561722,1718436661752,-221.18356498,0.00022465,3]
[329561723,1718436661766,-730.79,0.00022465,3]
[329561724,1718436661789,-500.0,0.00022465,3]
[329561725,1718436661803,-715.41,0.00022465,3]
[329561726,1718436661818,-500.0,0.00022465,3]
[329561727,1718436661829,-500.0,0.00022465,3]
[329561728,1718436661840,-500.0,0.00022465,3]
[329561729,1718436661851,-813.42,0.00022465,3]
[329561730,1718436661863,-500.0,0.00022465,3]
[329561731,1718436661875,-772.93,0.00022465,3]
[329561732,1718436661889,-500.0,0.00022465,3]
[329561733,1718436661900,-500.0,0.00022465,3]
[329561734,1718436661911,-500.0,0.00022465,3]
[329561735,1718436661922,-856.32,0.00022465,3]
[329561736,1718436661933,-500.0,0.00022465,3]
[329561737,1718436661956,-500.0,0.00022465,3]
[329561738,1718436661973,-614.12,0.00022465,3]
[329561739,1718436661992,-500.0,0.00022465,3]
[329561740,1718436662004,-500.0,0.00022465,3]
[329561741,1718436662016,-500.0,0.00022465,3]
[329561742,1718436662031,-1000.01,0.00022465,3]
[329561743,1718436662056,-913.69,0.00022465,3]
[329561744,1718436662092,-500.0,0.00022465,3]
[329561745,1718436662116,-500.0,0.00022465,3]
[329561746,1718436662148,-500.0,0.00022465,3]
[329561747,1718436662164,-500.0,0.00022465,3]
[329561748,1718436662178,-500.0,0.00022465,3]
[329561749,1718436662190,-729.85,0.00022465,3]
[329561750,1718436662204,-500.0,0.00022465,3]
[329561751,1718436662214,-500.0,0.00022465,3]
[329561752,1718436662225,-500.0,0.00022465,3]
[329561753,1718436662236,-274.93444024,0.00022465,3]
[329561754,1718436662247,-539.7663732,0.00022465,3]
[329561755,1718436662258,-500.0,0.00022465,3]
[329561756,1718436662272,-500.0,0.00022465,3]
[329561757,1718436662309,-500.0,0.00022465,3]
[329561758,1718436662351,-901.62,0.00022465,3]
[329561759,1718436662375,-500.0,0.00022465,3]
[329561760,1718436662392,-500.0,0.00022465,3]
[329561761,1718436662405,-500.0,0.00022465,3]
[329561762,1718436662417,-351.36899116,0.00022465,3]
[329561763,1718436662440,-500.0,0.00022465,3]
[329561764,1718436662451,-763.01,0.00022465,3]
[329561765,1718436662496,-500.0,0.00022465,3]
[329561766,1718436662514,-500.0,0.00022465,3]
[329561767,1718436662525,-346.60830007,0.00022465,3]
[329561768,1718436662545,-500.0,0.00022465,3]
[329561769,1718436662555,-500.0,0.00022465,3]
[329561770,1718436662570,-500.0,0.00022465,3]
[329561771,1718436662614,-500.0,0.00022465,3]
[329561772,1718436662638,-500.0,0.00022465,3]
[329561773,1718436662664,-500.0,0.00022465,3]
[329561774,1718436662675,-643.91,0.00022465,3]
[329561775,1718436662823,-500.0,0.00022465,3]
[329561776,1718436662853,-518.37,0.00022465,3]
[329561777,1718436662881,-500.0,0.00022465,3]
[329561778,1718436662897,-500.0,0.00022465,3]
[329561779,1718436662909,-500.0,0.00022465,3]
[329561780,1718436662929,-500.0,0.00022465,3]
[329561781,1718436662942,-500.0,0.00022465,3]
[329561782,1718436662953,-500.0,0.00022465,3]
[329561783,1718436662983,-1213.77,0.00022465,3]
[329561784,1718436662997,-500.0,0.00022465,3]
[329561785,1718436663024,-587.67,0.00022465,3]
[329561786,1718436663056,-553.42966888,0.00022465,3]
[329561787,1718436663077,-500.0,0.00022465,3]
[329561788,1718436663104,-500.0,0.00022465,3]
[329561789,1718436663115,-500.0,0.00022465,3]
[329561790,1718436663131,-666.4,0.00022465,3]
[329561791,1718436663161,-500.0,0.00022465,3]
[329561792,1718436663175,-500.0,0.00022465,3]
[329561793,1718436663228,-500.0,0.00022465,3]
[329561794,1718436663241,-500.0,0.00022465,3]
[329561795,1718436663262,-500.0,0.00022465,3]
[329561796,1718436663273,-500.0,0.00022465,3]
[329561797,1718436663283,-500.0,0.00022465,3]
[329561798,1718436663301,-500.0,0.00022465,3]
[329561799,1718436663319,-500.0,0.00022465,3]
[329561800,1718436663335,-500.0,0.00022465,3]
[329561801,1718436663353,-758.83,0.00022465,3]
[329561802,1718436663384,-500.0,0.00022465,3]
[329561803,1718436663411,-500.0,0.00022465,3]
[329561804,1718436663422,-500.0,0.00022465,3]
[329561805,1718436663435,-500.0,0.00022465,3]
[329561806,1718436663459,-500.0,0.00022465,3]
[329561807,1718436663475,-500.0,0.00022465,3]
[329561808,1718436663485,-500.0,0.00022465,3]
[329561809,1718436663516,-500.0,0.00022465,3]
[329561810,1718436663527,-663.75,0.00022465,3]
[329561811,1718436663545,-500.0,0.00022465,3]
[329561812,1718436663559,-500.0,0.00022465,3]
[329561813,1718436663571,-500.0,0.00022465,3]
[329561814,1718436663592,-580.42,0.00022465,3]
[329561815,1718436663605,-500.0,0.00022465,3]
[329561816,1718436663616,-500.0,0.00022465,3]
[329561817,1718436663651,-500.0,0.00022465,3]
[329561818,1718436663669,-607.52,0.00022465,3]
[329561819,1718436663683,-500.0,0.00022465,3]
[329561820,1718436663698,-500.0,0.00022465,3]
[329561821,1718436663711,-500.0,0.00022465,3]
[329561822,1718436663724,-500.0,0.00022465,3]
[329561823,1718436663738,-500.0,0.00022465,3]
[329561824,1718436663750,-805.62,0.00022465,3]
[329561825,1718436663778,-500.0,0.00022465,3]
[329561826,1718436663790,-595.44,0.00022465,3]
[329561827,1718436663817,-500.0,0.00022465,3]
[329561828,1718436663840,-601.88008771,0.00022465,3]
[329561829,1718436663861,-768.98,0.00022465,3]
[329561830,1718436663877,-500.0,0.00022465,3]
[329561831,1718436663905,-500.0,0.00022465,3]
[329561832,1718436663917,-500.0,0.00022465,3]
[329561833,1718436663935,-500.0,0.00022465,3]
[329561834,1718436663957,-706.7,0.00022465,3]
[329561835,1718436663969,-500.0,0.00022465,3]
[329561836,1718436663994,-500.0,0.00022465,3]
[329561837,1718436664008,-500.0,0.00022465,3]
[329561838,1718436664043,-500.0,0.00022465,3]
[329561839,1718436664055,-500.97,0.00022465,3]
[329561840,1718436664082,-500.0,0.00022465,3]
[329561841,1718436664108,-500.0,0.00022465,3]
[329561842,1718436664120,-500.0,0.00022465,3]
[329561843,1718436664144,-500.0,0.00022465,3]
[329561844,1718436664157,-500.0,0.00022465,3]
[329561845,1718436664168,-500.0,0.00022465,3]
[329561846,1718436664196,-500.0,0.00022465,3]
[329561847,1718436664241,-500.0,0.00022465,3]
[329561848,1718436664265,-500.0,0.00022465,3]
[329561849,1718436664283,-500.0,0.00022465,3]
[329561850,1718436664310,-306.32,0.00022465,3]
[329561851,1718436664341,-500.0,0.00022465,3]
[329561852,1718436664360,-500.0,0.00022465,3]
[329561853,1718436664371,-500.0,0.00022465,3]
[329561854,1718436664388,-500.0,0.00022465,3]
[329561855,1718436664405,-428.02505173,0.00022465,3]
[329561856,1718436664441,-706.67,0.00022465,3]
[329561857,1718436664452,-500.0,0.00022465,3]
[329561858,1718436664463,-572.66,0.00022465,3]
[329561859,1718436664476,-500.0,0.00022465,3]
[329561860,1718436664494,-500.0,0.00022465,3]
[329561861,1718436664505,-500.0,0.00022465,3]
[329561862,1718436664526,-500.0,0.00022465,3]
[329561863,1718436664559,-617.11,0.00022465,3]
[329561864,1718436664595,-939.07,0.00022465,3]
[329561865,1718436664606,-589.86,0.00022465,3]
[329561866,1718436664619,-500.0,0.00022465,3]
[329561867,1718436664633,-500.0,0.00022465,3]
[329561868,1718436664646,-582.63,0.00022465,3]
[329561869,1718436664658,-500.0,0.00022465,3]
[329561870,1718436664681,-663.17,0.00022465,3]
[329561871,1718436664695,-500.0,0.00022465,3]
[329561872,1718436664710,-707.58,0.00022465,3]
[329561873,1718436664725,-500.0,0.00022465,3]
[329561874,1718436664791,-500.0,0.00022465,3]
[329561875,1718436664809,-151.0,0.00022465,7]
[329561876,1718436664839,-502.93,0.00022465,3]
[329561877,1718436664861,-1582.59,0.00022465,3]
[329561878,1718436664879,-500.0,0.00022465,3]
[329561879,1718436664919,-500.0,0.00022465,3]
[329561880,1718436664933,-500.0,0.00022465,3]
[329561881,1718436664969,-500.0,0.00022465,3]
[329561882,1718436664996,-2141.77,0.00022465,3]
[329561883,1718436665009,-500.0,0.00022465,3]
[329561884,1718436665025,-500.0,0.00022465,3]
[329561885,1718436665037,-500.0,0.00022465,3]
[329561886,1718436665050,-500.0,0.00022465,3]
[329561887,1718436665065,-500.0,0.00022465,3]
[329561888,1718436665086,-500.0,0.00022465,3]
[329561889,1718436665098,-500.0,0.00022465,3]
[329561890,1718436665120,-553.28,0.00022465,3]
[329561891,1718436665140,-500.0,0.00022465,3]
[329561892,1718436665158,-584.54,0.00022465,3]
[329561893,1718436665179,-500.0,0.00022465,3]
[329561894,1718436665197,-500.0,0.00022465,3]
[329561895,1718436665210,-500.0,0.00022465,3]
[329561896,1718436665223,-500.0,0.00022465,3]
[329561897,1718436665241,-819.85,0.00022465,3]
[329561898,1718436665253,-500.0,0.00022465,3]
[329561899,1718436665277,-500.0,0.00022465,3]
[329561900,1718436665304,-500.0,0.00022465,3]
[329561901,1718436665348,-500.0,0.00022465,3]
[329561902,1718436665360,-500.0,0.00022465,3]
[329561903,1718436665391,-577.21,0.00022465,3]
[329561904,1718436665417,-500.0,0.00022465,3]
[329561905,1718436665451,-500.0,0.00022465,3]
[329561906,1718436665461,-631.57,0.00022465,3]
[329561907,1718436665472,-500.0,0.00022465,3]
[329561908,1718436665491,-500.0,0.00022465,3]
[329561909,1718436665507,-500.0,0.00022465,3]
[329561910,1718436665526,-836.61,0.00022465,3]
[329561911,1718436665579,-548.32,0.00022465,3]
[329561912,1718436665624,-500.0,0.00022465,3]
[329561913,1718436665641,-500.0,0.00022465,3]
[329561914,1718436665652,-500.0,0.00022465,3]
[329561915,1718436665664,-509.68542638,0.00022465,3]
[329561916,1718436665682,-500.0,0.00022465,3]
[329561917,1718436665693,-1139.04,0.00022465,3]
[329561918,1718436665704,-500.0,0.00022465,3]
[329561919,1718436665734,-405.79,0.00022465,3]
[329561920,1718436665759,-500.0,0.00022465,3]
[329561921,1718436665774,-500.0,0.00022465,3]
[329561922,1718436665787,-500.0,0.00022465,3]
[329561923,1718436665832,-500.0,0.00022465,3]
[329561924,1718436665861,-500.0,0.00022465,3]
[329561925,1718436665893,-500.0,0.00022465,3]
[329561926,1718436665910,-697.59,0.00022465,3]
[329561927,1718436665933,-500.0,0.00022465,3]
[329561928,1718436665945,-799.95,0.00022465,3]
[329561929,1718436665957,-500.0,0.00022465,3]
[329561930,1718436665990,-500.0,0.00022465,3]
[329561931,1718436666002,-500.0,0.00022465,3]
[329561932,1718436666015,-500.0,0.00022465,3]
[329561933,1718436666033,-500.0,0.00022465,3]
[329561934,1718436666047,-500.0,0.00022465,3]
[329561935,1718436666059,-500.0,0.00022465,3]
[329561936,1718436666075,-500.0,0.00022465,3]
[329561937,1718436666086,-500.0,0.00022465,3]
[329561938,1718436666098,-758.77,0.00022465,3]
[329561939,1718436666118,-301.22318249,0.00022465,3]
[329561940,1718436666596,-198.77681751,0.00022465,3]
[329561941,1718436666611,-500.0,0.00022465,3]
[329561942,1718436666623,-743.94,0.00022465,3]
[329561943,1718436666646,-500.0,0.00022465,3]
[329561944,1718436666657,-500.0,0.00022465,3]
[329561945,1718436666710,-990.12,0.00022465,3]
[329561946,1718436666722,-500.0,0.00022465,3]
[329561947,1718436666733,-500.0,0.00022465,3]
[329561948,1718436666747,-199.35190813,0.00022465,3]
[329561949,1718436666768,-112.42659102,0.00022465,3]
[329561950,1718436666797,-387.57340898,0.00022465,3]
[329561951,1718436666828,-240.27957698,0.00022465,3]
[329561952,1718436666844,-259.72042302,0.00022465,3]
[329561953,1718436666884,-104.4677155,0.00022465,3]
[329561954,1718436666919,-395.5322845,0.00022465,3]
[329561955,1718436666930,-500.0,0.00022465,3]
[329561956,1718436666941,-191.57671867,0.00022465,3]
[329561957,1718436667068,-308.42328133,0.00022465,3]
[329561958,1718436667083,-500.0,0.00022465,3]
[329561959,1718436667100,-539.18,0.00022465,3]
[329561960,1718436667113,-500.0,0.00022465,3]
[329561961,1718436667129,-624.34,0.00022465,3]
[329561962,1718436667144,-541.56,0.00022465,3]
[329561963,1718436667155,-500.0,0.00022465,3]
[329561964,1718436667171,-500.0,0.00022465,3]
[329561965,1718436667183,-346.03977779,0.00022465,3]
[329561966,1718436667201,-382.12,0.00022465,3]